[Event "*** Titled Tuesday Blitz"]
[Site "Chess.com"]
[Date "2020.04.28"]
[Round "2"]
[White "aNaartjieZA"]
[Black "Vesper2018"]
[Result "0-1"]
[WhiteElo "2587"]
[BlackElo "2056"]
[TimeControl "180+1"]
[EndTime "10:19:48 PDT"]
[Termination "Vesper2018 won by resignation"]

1. e4 {[%clk 0:03:00.9]} 1... c5 {[%clk 0:02:59.8]} 2. Nf3 {[%clk 0:03:00.3]}
2... d6 {[%clk 0:03:00]} 3. g3 {[%clk 0:02:59]} 3... Nc6 {[%clk 0:02:57.1]} 4.
Bg2 {[%clk 0:02:58.8]} 4... g6 {[%clk 0:02:57.4]} 5. O-O {[%clk 0:02:57.9]} 5...
Bg7 {[%clk 0:02:57.6]} 6. c3 {[%clk 0:02:56]} 6... e5 {[%clk 0:02:52.2]} 7. d3
{[%clk 0:02:53.4]} 7... Nge7 {[%clk 0:02:52.1]} 8. a3 {[%clk 0:02:52.9]} 8...
O-O {[%clk 0:02:45.4]} 9. b4 {[%clk 0:02:52.9]} 9... a6 {[%clk 0:02:37.4]} 10.
Nbd2 {[%clk 0:02:52.2]} 10... h6 {[%clk 0:02:33.9]} 11. Bb2 {[%clk 0:02:51]}
11... Be6 {[%clk 0:02:31.9]} 12. Rc1 {[%clk 0:02:39]} 12... b6 {[%clk
0:02:25.9]} 13. Re1 {[%clk 0:02:25.2]} 13... Rc8 {[%clk 0:02:23.6]} 14. Nf1
{[%clk 0:02:11.5]} 14... f5 {[%clk 0:02:19.6]} 15. exf5 {[%clk 0:02:11.4]} 15...
Bxf5 {[%clk 0:01:58.9]} 16. Nh4 {[%clk 0:02:10.3]} 16... Qd7 {[%clk 0:01:56]}
17. Nxf5 {[%clk 0:02:04.5]} 17... gxf5 {[%clk 0:01:53]} 18. Qh5 {[%clk
0:02:00.4]} 18... d5 {[%clk 0:01:43.4]} 19. Bh3 {[%clk 0:01:39.3]} 19... d4
{[%clk 0:01:31.9]} 20. bxc5 {[%clk 0:01:36.7]} 20... bxc5 {[%clk 0:01:30.5]} 21.
cxd4 {[%clk 0:01:33]} 21... Nxd4 {[%clk 0:01:20.6]} 22. Bxd4 {[%clk 0:01:29.9]}
22... cxd4 {[%clk 0:01:20.6]} 23. Nd2 {[%clk 0:01:24.7]} 23... Rxc1 {[%clk
0:01:14.4]} 24. Rxc1 {[%clk 0:01:24.1]} 24... Nd5 {[%clk 0:01:14.5]} 25. Nc4
{[%clk 0:01:18.2]} 25... Nc3 {[%clk 0:01:11]} 26. Re1 {[%clk 0:01:15.1]} 26...
Qe6 {[%clk 0:01:02.4]} 27. Bg2 {[%clk 0:01:02.6]} 27... e4 {[%clk 0:00:55.6]}
28. g4 {[%clk 0:00:55.6]} 28... fxg4 {[%clk 0:00:30.1]} 29. Bxe4 {[%clk
0:00:53.8]} 29... Nxe4 {[%clk 0:00:29.1]} 30. Rxe4 {[%clk 0:00:53.1]} 30... Qf6
{[%clk 0:00:29.4]} 31. Re2 {[%clk 0:00:41.1]} 31... Qf3 {[%clk 0:00:27.7]} 32.
Rd2 {[%clk 0:00:37.9]} 32... Qf4 {[%clk 0:00:21.7]} 33. Qd5+ {[%clk 0:00:31.1]}
33... Kh8 {[%clk 0:00:21.5]} 34. Re2 {[%clk 0:00:29.3]} 34... Qf3 {[%clk
0:00:18.6]} 35. Qe4 {[%clk 0:00:18.8]} 35... Qxe4 {[%clk 0:00:16.5]} 36. Rxe4
{[%clk 0:00:18.7]} 36... Rf3 {[%clk 0:00:16.5]} 37. Nb2 {[%clk 0:00:15.8]} 37...
h5 {[%clk 0:00:16.5]} 38. Kg2 {[%clk 0:00:15.8]} 38... Rf7 {[%clk 0:00:15]} 39.
Nc4 {[%clk 0:00:15.5]} 39... Kh7 {[%clk 0:00:12]} 40. Re6 {[%clk 0:00:15.6]}
40... Rf3 {[%clk 0:00:11]} 41. Nb2 {[%clk 0:00:13.8]} 41... a5 {[%clk
0:00:09.5]} 42. Rd6 {[%clk 0:00:13]} 42... Bf6 {[%clk 0:00:07.2]} 43. Rd5 {[%clk
0:00:12.8]} 43... a4 {[%clk 0:00:06.5]} 44. Rxh5+ {[%clk 0:00:12.4]} 44... Kg6
{[%clk 0:00:07]} 45. Rd5 {[%clk 0:00:11.8]} 45... Rf4 {[%clk 0:00:05.7]} 46. Kg3
{[%clk 0:00:10.1]} 46... Rf3+ {[%clk 0:00:05.6]} 47. Kxg4 {[%clk 0:00:10.4]}
47... Rxf2 {[%clk 0:00:06]} 48. Nc4 {[%clk 0:00:09.7]} 48... Rxh2 {[%clk
0:00:05.4]} 49. Ne5+ {[%clk 0:00:09.7]} 49... Bxe5 {[%clk 0:00:04.7]} 50. Rxe5
{[%clk 0:00:10.1]} 50... Rd2 {[%clk 0:00:04.9]} 51. Ra5 {[%clk 0:00:09.6]} 51...
Rxd3 {[%clk 0:00:05]} 52. Ra6+ {[%clk 0:00:09.8]} 52... Kf7 {[%clk 0:00:04.3]}
53. Rxa4 {[%clk 0:00:10.4]} 53... Ke6 {[%clk 0:00:04.8]} 54. Kf4 {[%clk
0:00:10.6]} 54... Kd5 {[%clk 0:00:05.3]} 55. Ra5+ {[%clk 0:00:10.6]} 55... Kc4
{[%clk 0:00:05.6]} 56. Ke4 {[%clk 0:00:10.7]} 56... Rd1 {[%clk 0:00:05.3]} 57.
Ra8 {[%clk 0:00:10.2]} 57... Re1+ {[%clk 0:00:05.2]} 58. Kf3 {[%clk 0:00:10]}
58... d3 {[%clk 0:00:05.8]} 59. Rc8+ {[%clk 0:00:10.2]} 59... Kb3 {[%clk
0:00:06]} 60. Rd8 {[%clk 0:00:10.5]} 60... Kc2 {[%clk 0:00:06.3]} 61. Rc8+
{[%clk 0:00:10.7]} 61... Kd2 {[%clk 0:00:06.3]} 62. a4 {[%clk 0:00:11]} 62...
Ra1 {[%clk 0:00:06.2]} 63. Rc4 {[%clk 0:00:10.6]} 63... Ra3 {[%clk 0:00:05.5]}
64. Kf2 {[%clk 0:00:10.4]} 64... Kd1 {[%clk 0:00:05.6]} 65. Rd4 {[%clk
0:00:08.6]} 65... d2 {[%clk 0:00:06.1]} 66. a5 {[%clk 0:00:07.7]} 66... Rxa5
{[%clk 0:00:05.4]} 67. Ke3 {[%clk 0:00:08.1]} 67... Ra3+ {[%clk 0:00:05.3]} 68.
Kf2 {[%clk 0:00:07.8]} 68... Ra2 {[%clk 0:00:05.8]} 69. Rc4 {[%clk 0:00:07.5]}
69... Rc2 {[%clk 0:00:05.5]} 70. Ra4 {[%clk 0:00:07.6]} 70... Rb2 {[%clk
0:00:03.8]} 71. Rc4 {[%clk 0:00:06.4]} 71... Rb7 {[%clk 0:00:03.9]} 72. Ke3
{[%clk 0:00:06.2]} 72... Re7+ {[%clk 0:00:04]} 73. Kf2 {[%clk 0:00:06.3]} 73...
Rf7+ {[%clk 0:00:04.4]} 74. Ke3 {[%clk 0:00:06.5]} 74... Ke1 {[%clk 0:00:04.8]}
75. Kd3 {[%clk 0:00:06.9]} 75... d1=Q+ {[%clk 0:00:04.3]} 0-1

[Event "*** Titled Tuesday Blitz"]
[Site "Chess.com"]
[Date "2020.04.28"]
[Round "2"]
[White "kaumandur01"]
[Black "Tashik"]
[Result "0-1"]
[WhiteElo "2781"]
[BlackElo "2537"]
[TimeControl "180+1"]
[EndTime "10:19:49 PDT"]
[Termination "Tashik won by checkmate"]

1. e4 {[%clk 0:03:00.9]} 1... e5 {[%clk 0:02:59.7]} 2. Nf3 {[%clk 0:03:00.6]}
2... Nc6 {[%clk 0:03:00]} 3. Bc4 {[%clk 0:03:00.7]} 3... Bc5 {[%clk 0:02:59.2]}
4. O-O {[%clk 0:02:59.6]} 4... Nf6 {[%clk 0:02:59.7]} 5. d3 {[%clk 0:02:59.8]}
5... O-O {[%clk 0:02:57.9]} 6. h3 {[%clk 0:02:58.3]} 6... h6 {[%clk 0:02:57.5]}
7. Re1 {[%clk 0:02:57.1]} 7... d6 {[%clk 0:02:56.7]} 8. c3 {[%clk 0:02:57]} 8...
a5 {[%clk 0:02:56.8]} 9. Nbd2 {[%clk 0:02:56.4]} 9... a4 {[%clk 0:02:47.3]} 10.
Bb5 {[%clk 0:02:45.6]} 10... Bd7 {[%clk 0:02:47.6]} 11. Nf1 {[%clk 0:02:20.9]}
11... Ra5 {[%clk 0:02:29.6]} 12. Bxc6 {[%clk 0:02:05.4]} 12... Bxc6 {[%clk
0:02:27.2]} 13. Ng3 {[%clk 0:02:06]} 13... Ra8 {[%clk 0:02:20.1]} 14. d4 {[%clk
0:02:04.1]} 14... exd4 {[%clk 0:02:16.8]} 15. cxd4 {[%clk 0:02:02.9]} 15... Bb4
{[%clk 0:02:17.4]} 16. Bd2 {[%clk 0:02:02.4]} 16... Bxd2 {[%clk 0:02:15.9]} 17.
Qxd2 {[%clk 0:02:03.1]} 17... Re8 {[%clk 0:02:15.9]} 18. d5 {[%clk 0:02:02.9]}
18... Bd7 {[%clk 0:02:14.1]} 19. Nd4 {[%clk 0:02:02.5]} 19... c5 {[%clk
0:01:58.5]} 20. Nf3 {[%clk 0:01:42.3]} 20... b5 {[%clk 0:01:48.5]} 21. Qf4
{[%clk 0:01:27.2]} 21... Qb6 {[%clk 0:01:47.8]} 22. Nh4 {[%clk 0:01:25.6]} 22...
Re5 {[%clk 0:01:42]} 23. Nhf5 {[%clk 0:01:23.2]} 23... Bxf5 {[%clk 0:01:38.4]}
24. Nxf5 {[%clk 0:01:23.8]} 24... Qd8 {[%clk 0:01:29.8]} 25. Re3 {[%clk
0:01:17]} 25... Qd7 {[%clk 0:00:15.3]} 26. Nxh6+ {[%clk 0:01:10.2]} 26... Kf8
{[%clk 0:00:11.6]} 27. Ng4 {[%clk 0:01:06.7]} 27... Nxg4 {[%clk 0:00:07.3]} 28.
hxg4 {[%clk 0:01:07.6]} 28... f6 {[%clk 0:00:07.7]} 29. Rae1 {[%clk 0:01:07]}
29... Kf7 {[%clk 0:00:08.1]} 30. Rh3 {[%clk 0:01:05.4]} 30... Rae8 {[%clk
0:00:07.7]} 31. Rh5 {[%clk 0:01:03.7]} 31... Rxh5 {[%clk 0:00:04.9]} 32. gxh5
{[%clk 0:01:03.5]} 32... Qe7 {[%clk 0:00:05.8]} 33. Qg4 {[%clk 0:01:02.9]} 33...
Qe5 {[%clk 0:00:05.6]} 34. Qg6+ {[%clk 0:01:02.5]} 34... Kg8 {[%clk 0:00:05.2]}
35. h6 {[%clk 0:01:02.1]} 35... Re7 {[%clk 0:00:05.6]} 36. Re3 {[%clk
0:00:59.9]} 36... Qg5 {[%clk 0:00:05.2]} 37. Qxg5 {[%clk 0:00:58.2]} 37... fxg5
{[%clk 0:00:06.1]} 38. hxg7 {[%clk 0:00:58.4]} 38... Kxg7 {[%clk 0:00:06.8]} 39.
Kh2 {[%clk 0:00:55.3]} 39... Kf6 {[%clk 0:00:07.3]} 40. Kg3 {[%clk 0:00:56]}
40... b4 {[%clk 0:00:06.5]} 41. Kg4 {[%clk 0:00:55.6]} 41... Rg7 {[%clk
0:00:06.1]} 42. b3 {[%clk 0:00:38.8]} 42... Ke5 {[%clk 0:00:06.5]} 43. bxa4
{[%clk 0:00:38.1]} 43... Kd4 {[%clk 0:00:04.8]} 44. a5 {[%clk 0:00:37.6]} 44...
Ra7 {[%clk 0:00:04.4]} 45. Kxg5 {[%clk 0:00:37.3]} 45... Rxa5 {[%clk 0:00:04.9]}
46. Kf5 {[%clk 0:00:30.3]} 46... Rxa2 {[%clk 0:00:04.8]} 47. Ke6 {[%clk
0:00:30.8]} 47... c4 {[%clk 0:00:04.7]} 48. Kxd6 {[%clk 0:00:28.9]} 48... b3
{[%clk 0:00:05.1]} 49. Kc6 {[%clk 0:00:14.4]} 49... b2 {[%clk 0:00:05.4]} 50.
Re1 {[%clk 0:00:14.3]} 50... Ra1 {[%clk 0:00:05.1]} 51. d6 {[%clk 0:00:14]}
51... Rxe1 {[%clk 0:00:05.1]} 52. d7 {[%clk 0:00:14.2]} 52... b1=Q {[%clk
0:00:05.3]} 53. d8=Q+ {[%clk 0:00:14.9]} 53... Kc3 {[%clk 0:00:05.6]} 54. Qa5+
{[%clk 0:00:15]} 54... Qb4 {[%clk 0:00:04]} 55. Qe5+ {[%clk 0:00:14.8]} 55...
Kc2 {[%clk 0:00:04.2]} 56. Qd4 {[%clk 0:00:13]} 56... Qa4+ {[%clk 0:00:04.4]}
57. Kc5 {[%clk 0:00:12.9]} 57... Qa5+ {[%clk 0:00:03.3]} 58. Kxc4 {[%clk
0:00:12.7]} 58... Qa4+ {[%clk 0:00:03.7]} 59. Kd5 {[%clk 0:00:13]} 59... Rd1
{[%clk 0:00:02.9]} 60. Qxd1+ {[%clk 0:00:11.8]} 60... Kxd1 {[%clk 0:00:03.8]}
61. e5 {[%clk 0:00:12.7]} 61... Qb3+ {[%clk 0:00:04.3]} 62. Kd6 {[%clk
0:00:13.1]} 62... Qb4+ {[%clk 0:00:04.5]} 63. Kd7 {[%clk 0:00:13.2]} 63... Qd2+
{[%clk 0:00:04.3]} 64. Ke6 {[%clk 0:00:13.7]} 64... Qxf2 {[%clk 0:00:04.8]} 65.
Kd6 {[%clk 0:00:13.6]} 65... Qxg2 {[%clk 0:00:05.2]} 66. e6 {[%clk 0:00:14.5]}
66... Qg6 {[%clk 0:00:05.6]} 67. Kd7 {[%clk 0:00:14.8]} 67... Qd3+ {[%clk
0:00:05.3]} 68. Ke8 {[%clk 0:00:14.8]} 68... Qb5+ {[%clk 0:00:05.2]} 69. Kf8
{[%clk 0:00:15.1]} 69... Qf5+ {[%clk 0:00:05.2]} 70. Ke7 {[%clk 0:00:15.3]}
70... Kd2 {[%clk 0:00:05.3]} 71. Kd6 {[%clk 0:00:15.4]} 71... Qd3+ {[%clk
0:00:05]} 72. Kc7 {[%clk 0:00:15.4]} 72... Qc4+ {[%clk 0:00:04.9]} 73. Kd7
{[%clk 0:00:15.9]} 73... Qd5+ {[%clk 0:00:05.4]} 74. Ke7 {[%clk 0:00:16.3]}
74... Ke3 {[%clk 0:00:06]} 75. Kf6 {[%clk 0:00:17.2]} 75... Qd4+ {[%clk
0:00:05.8]} 76. Kf7 {[%clk 0:00:17.5]} 76... Qf4+ {[%clk 0:00:06]} 77. Kg7
{[%clk 0:00:17.8]} 77... Qg5+ {[%clk 0:00:06]} 78. Kf7 {[%clk 0:00:18.2]} 78...
Qf5+ {[%clk 0:00:06.4]} 79. Ke7 {[%clk 0:00:19.1]} 79... Kd4 {[%clk 0:00:06.9]}
80. Kd7 {[%clk 0:00:20]} 80... Qd5+ {[%clk 0:00:07.1]} 81. Kc7 {[%clk
0:00:20.2]} 81... Qxe6 {[%clk 0:00:06.4]} 82. Kb7 {[%clk 0:00:21.1]} 82... Kc5
{[%clk 0:00:06.8]} 83. Kc7 {[%clk 0:00:22]} 83... Qd6+ {[%clk 0:00:07.1]} 84.
Kb7 {[%clk 0:00:22.9]} 84... Qd7+ {[%clk 0:00:06.9]} 85. Ka8 {[%clk 0:00:23.7]}
85... Kb6 {[%clk 0:00:07.2]} 86. Kb8 {[%clk 0:00:24.6]} 86... Qb7# {[%clk
0:00:07.7]} 0-1

[Event "*** Titled Tuesday Blitz"]
[Site "Chess.com"]
[Date "2020.04.28"]
[Round "2"]
[White "IlzeBerzina"]
[Black "Aureliano-Buendia"]
[Result "0-1"]
[WhiteElo "2146"]
[BlackElo "2418"]
[TimeControl "180+1"]
[EndTime "10:19:49 PDT"]
[Termination "Aureliano-Buendia won on time"]

1. e4 {[%clk 0:03:00.9]} 1... e5 {[%clk 0:02:58.8]} 2. Nf3 {[%clk 0:03:00.5]}
2... Nc6 {[%clk 0:02:58.8]} 3. Bb5 {[%clk 0:03:00.3]} 3... Nf6 {[%clk
0:02:54.9]} 4. O-O {[%clk 0:02:58.3]} 4... Nxe4 {[%clk 0:02:49.5]} 5. d4 {[%clk
0:02:57]} 5... Nd6 {[%clk 0:02:48.7]} 6. Bxc6 {[%clk 0:02:56.1]} 6... dxc6
{[%clk 0:02:48.7]} 7. dxe5 {[%clk 0:02:55.8]} 7... Nf5 {[%clk 0:02:48.8]} 8.
Qxd8+ {[%clk 0:02:55.5]} 8... Kxd8 {[%clk 0:02:49.7]} 9. Nc3 {[%clk 0:02:54.2]}
9... Bd7 {[%clk 0:02:48.3]} 10. Bg5+ {[%clk 0:02:46.1]} 10... Kc8 {[%clk
0:02:44.1]} 11. Rad1 {[%clk 0:02:43.7]} 11... b6 {[%clk 0:02:42.6]} 12. Nd4
{[%clk 0:02:38.2]} 12... Nxd4 {[%clk 0:02:35.8]} 13. Rxd4 {[%clk 0:02:37.3]}
13... h6 {[%clk 0:02:27.5]} 14. Bh4 {[%clk 0:02:27.5]} 14... g5 {[%clk
0:02:09.4]} 15. Bg3 {[%clk 0:02:25.9]} 15... Bc5 {[%clk 0:02:06.1]} 16. Rd2
{[%clk 0:02:19.6]} 16... Bb4 {[%clk 0:02:04.1]} 17. Rd3 {[%clk 0:01:56.8]} 17...
Bf5 {[%clk 0:01:55.3]} 18. Rf3 {[%clk 0:01:55]} 18... Be6 {[%clk 0:01:53.4]} 19.
a3 {[%clk 0:01:52.8]} 19... Be7 {[%clk 0:01:51.8]} 20. Ne4 {[%clk 0:01:45]}
20... Kb7 {[%clk 0:01:50.6]} 21. Nf6 {[%clk 0:01:40.7]} 21... Rad8 {[%clk
0:01:45.1]} 22. Re3 {[%clk 0:01:34.9]} 22... Rd2 {[%clk 0:01:42.7]} 23. Rc3
{[%clk 0:01:34.1]} 23... Rhd8 {[%clk 0:01:37.3]} 24. h4 {[%clk 0:01:31.7]} 24...
Bf5 {[%clk 0:01:28.6]} 25. hxg5 {[%clk 0:01:26.3]} 25... hxg5 {[%clk 0:01:28.2]}
26. Rc1 {[%clk 0:01:02]} 26... Rd1+ {[%clk 0:01:25.9]} 27. Rxd1 {[%clk
0:01:01.9]} 27... Rxd1+ {[%clk 0:01:26.8]} 28. Kh2 {[%clk 0:01:02]} 28... Rd2
{[%clk 0:01:27.7]} 29. Ng8 {[%clk 0:00:55.2]} 29... Bc5 {[%clk 0:01:18.1]} 30.
Rf3 {[%clk 0:00:51.3]} 30... Be6 {[%clk 0:01:10.4]} 31. c3 {[%clk 0:00:42.8]}
31... Rxb2 {[%clk 0:01:09.2]} 32. Nh6 {[%clk 0:00:40.3]} 32... Bxa3 {[%clk
0:01:05.3]} 33. Nxf7 {[%clk 0:00:39.9]} 33... Be7 {[%clk 0:00:58]} 34. Nh8
{[%clk 0:00:32]} 34... a5 {[%clk 0:00:56.4]} 35. Ng6 {[%clk 0:00:31.5]} 35...
Bc5 {[%clk 0:00:55.1]} 36. Rf6 {[%clk 0:00:30.6]} 36... Bd5 {[%clk 0:00:54.5]}
37. e6 {[%clk 0:00:27.7]} 37... Re2 {[%clk 0:00:50.1]} 38. Rf7 {[%clk
0:00:23.5]} 38... Bxe6 {[%clk 0:00:46.9]} 39. Rxc7+ {[%clk 0:00:22.8]} 39... Ka6
{[%clk 0:00:47.2]} 40. Ne5 {[%clk 0:00:19.6]} 40... Bxf2 {[%clk 0:00:39]} 41.
Bxf2 {[%clk 0:00:17.5]} 41... Rxe5 {[%clk 0:00:37.9]} 42. Rxc6 {[%clk
0:00:16.7]} 42... Kb5 {[%clk 0:00:32.5]} 43. Rxb6+ {[%clk 0:00:16]} 43... Kc4
{[%clk 0:00:32.8]} 44. Rc6+ {[%clk 0:00:14.4]} 44... Kd3 {[%clk 0:00:32]} 45.
Rd6+ {[%clk 0:00:12.8]} 45... Kc2 {[%clk 0:00:30.2]} 46. Bd4 {[%clk 0:00:10.3]}
46... Re2 {[%clk 0:00:28.9]} 47. Ra6 {[%clk 0:00:09.3]} 47... Bd5 {[%clk
0:00:25.7]} 48. Rxa5 {[%clk 0:00:09.3]} 48... Rxg2+ {[%clk 0:00:25.2]} 49. Kh3
{[%clk 0:00:08.5]} 49... g4+ {[%clk 0:00:25]} 50. Kh4 {[%clk 0:00:07.9]} 50...
Bc4 {[%clk 0:00:21.6]} 51. Rg5 {[%clk 0:00:07.2]} 51... Be2 {[%clk 0:00:21.3]}
52. Be5 {[%clk 0:00:06.5]} 52... Kd3 {[%clk 0:00:20.4]} 53. Rg8 {[%clk
0:00:05.3]} 53... Bf3 {[%clk 0:00:19.2]} 54. Rg7 {[%clk 0:00:03.3]} 54... Rg1
{[%clk 0:00:18.9]} 55. Rg8 {[%clk 0:00:03.2]} 55... Ke2 {[%clk 0:00:18.6]} 56.
Rg7 {[%clk 0:00:02.9]} 56... Rh1+ {[%clk 0:00:17]} 57. Kg5 {[%clk 0:00:02.1]}
57... Kd3 {[%clk 0:00:15.6]} 58. Kf6 {[%clk 0:00:01.6]} 58... Ra1 {[%clk
0:00:14.9]} 59. Ke6 {[%clk 0:00:01.2]} 59... Ra6+ {[%clk 0:00:15.4]} 60. Kf5
{[%clk 0:00:01.4]} 60... Ra5 {[%clk 0:00:15.9]} 61. Kf4 {[%clk 0:00:01.6]} 61...
Rb5 {[%clk 0:00:15.3]} 62. Kf5 {[%clk 0:00:01.7]} 62... Ke2 {[%clk 0:00:14.6]}
63. Kf4 {[%clk 0:00:01.9]} 63... Rc5 {[%clk 0:00:15.2]} 64. Rg6 {[%clk
0:00:02.1]} 64... Rc4+ {[%clk 0:00:15.5]} 65. Kf5 {[%clk 0:00:02.3]} 65... Rc5
{[%clk 0:00:16.3]} 66. Kf4 {[%clk 0:00:02.4]} 66... Rc4+ {[%clk 0:00:17]} 67.
Kf5 {[%clk 0:00:02.1]} 67... Ra4 {[%clk 0:00:17.2]} 68. Kg5 {[%clk 0:00:01.9]}
68... Rc4 {[%clk 0:00:17]} 69. Kf6 {[%clk 0:00:01.8]} 69... Be4 {[%clk
0:00:17.2]} 70. Rh6 {[%clk 0:00:01]} 70... Rc6+ {[%clk 0:00:17.6]} 0-1

[Event "*** Titled Tuesday Blitz"]
[Site "Chess.com"]
[Date "2020.04.28"]
[Round "2"]
[White "FROGGY64"]
[Black "Susal_De_Silva"]
[Result "0-1"]
[WhiteElo "2451"]
[BlackElo "2264"]
[TimeControl "180+1"]
[EndTime "10:19:51 PDT"]
[Termination "Susal_De_Silva won by resignation"]

1. d4 {[%clk 0:03:00.9]} 1... Nf6 {[%clk 0:02:59.9]} 2. c4 {[%clk 0:03:00.2]}
2... e6 {[%clk 0:02:59.3]} 3. g3 {[%clk 0:03:00]} 3... Be7 {[%clk 0:02:56.4]} 4.
Nf3 {[%clk 0:03:00]} 4... b6 {[%clk 0:02:56.2]} 5. Bg2 {[%clk 0:02:59.8]} 5...
Bb7 {[%clk 0:02:56.6]} 6. O-O {[%clk 0:03:00.4]} 6... O-O {[%clk 0:02:56.8]} 7.
Nc3 {[%clk 0:03:00.9]} 7... Ne4 {[%clk 0:02:56.8]} 8. Qc2 {[%clk 0:02:58.5]}
8... Nxc3 {[%clk 0:02:55.7]} 9. Qxc3 {[%clk 0:02:58.2]} 9... c5 {[%clk
0:02:55.8]} 10. Rd1 {[%clk 0:02:55.8]} 10... d6 {[%clk 0:02:53.6]} 11. d5 {[%clk
0:02:55]} 11... Bf6 {[%clk 0:02:51.7]} 12. Qc2 {[%clk 0:02:54.5]} 12... exd5
{[%clk 0:02:48.6]} 13. cxd5 {[%clk 0:02:54.4]} 13... Nd7 {[%clk 0:02:49]} 14.
Bf4 {[%clk 0:02:52.7]} 14... Qe7 {[%clk 0:02:45.9]} 15. e4 {[%clk 0:02:51.2]}
15... Rad8 {[%clk 0:02:41.5]} 16. h4 {[%clk 0:02:50.4]} 16... h6 {[%clk
0:02:39.9]} 17. Re1 {[%clk 0:02:49.4]} 17... Ne5 {[%clk 0:02:37.9]} 18. Rad1
{[%clk 0:02:47.1]} 18... a6 {[%clk 0:02:33.8]} 19. a4 {[%clk 0:02:45.6]} 19...
b5 {[%clk 0:02:32.6]} 20. b3 {[%clk 0:02:44.6]} 20... Rc8 {[%clk 0:02:20.3]} 21.
Nxe5 {[%clk 0:02:44]} 21... Bxe5 {[%clk 0:02:12.1]} 22. Bxe5 {[%clk 0:02:44.1]}
22... dxe5 {[%clk 0:02:03.5]} 23. Bh3 {[%clk 0:02:40.8]} 23... Rcd8 {[%clk
0:01:56.5]} 24. axb5 {[%clk 0:02:40.4]} 24... axb5 {[%clk 0:01:56.3]} 25. Ra1
{[%clk 0:02:38.9]} 25... Bc8 {[%clk 0:01:54.4]} 26. Bg2 {[%clk 0:02:33.1]} 26...
Bg4 {[%clk 0:01:32.5]} 27. Rec1 {[%clk 0:02:31.5]} 27... Rc8 {[%clk 0:01:31.9]}
28. Ra5 {[%clk 0:02:30.1]} 28... c4 {[%clk 0:01:30]} 29. bxc4 {[%clk 0:02:19.2]}
29... Rxc4 {[%clk 0:01:30.3]} 30. Qd2 {[%clk 0:02:18.7]} 30... Rfc8 {[%clk
0:01:28.1]} 31. Rb1 {[%clk 0:02:16.2]} 31... Rc2 {[%clk 0:01:26]} 32. Qe3 {[%clk
0:02:15.8]} 32... R8c3 {[%clk 0:01:23.1]} 33. Qb6 {[%clk 0:02:15.8]} 33... Be2
{[%clk 0:01:18.9]} 34. Ra8+ {[%clk 0:02:13.6]} 34... Kh7 {[%clk 0:01:18.8]} 35.
d6 {[%clk 0:02:11.7]} 35... Qf6 {[%clk 0:01:17.5]} 36. Bh3 {[%clk 0:01:54.2]}
36... Rc1+ {[%clk 0:00:33.2]} 37. Rxc1 {[%clk 0:01:52.8]} 37... Rxc1+ {[%clk
0:00:34.1]} 38. Kh2 {[%clk 0:01:52.8]} 38... Bf3 {[%clk 0:00:22.2]} 39. Bg2
{[%clk 0:01:51.9]} 39... Bxg2 {[%clk 0:00:22.3]} 40. Kxg2 {[%clk 0:01:51.9]}
40... Rc3 {[%clk 0:00:22.8]} 41. Ra1 {[%clk 0:01:48.5]} 41... Qf3+ {[%clk
0:00:22.6]} 42. Kh2 {[%clk 0:01:48.6]} 42... Rc2 {[%clk 0:00:22.8]} 43. Rf1
{[%clk 0:01:45]} 43... Rd2 {[%clk 0:00:20]} 44. Kg1 {[%clk 0:01:38.9]} 44...
Qxe4 {[%clk 0:00:20.1]} 45. Qxb5 {[%clk 0:01:33.8]} 45... Rxd6 {[%clk
0:00:19.4]} 46. Qb3 {[%clk 0:01:29.2]} 46... Qd5 {[%clk 0:00:17.1]} 47. Qe3
{[%clk 0:01:27.8]} 47... Rg6 {[%clk 0:00:16.1]} 48. Re1 {[%clk 0:01:26.2]} 48...
e4 {[%clk 0:00:15.6]} 49. Qxe4 {[%clk 0:01:25.6]} 49... Qxe4 {[%clk 0:00:16.5]}
50. Rxe4 {[%clk 0:01:25.8]} 50... Rb6 {[%clk 0:00:17]} 51. Kg2 {[%clk
0:01:25.8]} 51... f6 {[%clk 0:00:17.2]} 52. h5 {[%clk 0:01:25.3]} 52... Ra6
{[%clk 0:00:17.4]} 53. g4 {[%clk 0:01:25.5]} 53... Ra5 {[%clk 0:00:17.9]} 54.
Rf4 {[%clk 0:01:24.2]} 54... Rg5 {[%clk 0:00:17.4]} 55. Kh3 {[%clk 0:01:23.5]}
55... Ra5 {[%clk 0:00:17]} 56. Rb4 {[%clk 0:01:21.8]} 56... Ra3+ {[%clk
0:00:17.2]} 57. Kg2 {[%clk 0:01:21.4]} 57... Rd3 {[%clk 0:00:17.6]} 58. f3
{[%clk 0:01:21.3]} 58... Rd2+ {[%clk 0:00:18.2]} 59. Kg3 {[%clk 0:01:21.5]}
59... Rd1 {[%clk 0:00:19.1]} 60. Kf4 {[%clk 0:01:21.7]} 60... Rg1 {[%clk
0:00:19.2]} 61. Kf5 {[%clk 0:01:19]} 61... Ra1 {[%clk 0:00:19.4]} 62. Rb5 {[%clk
0:01:16.8]} 62... Rd1 {[%clk 0:00:19.2]} 63. f4 {[%clk 0:01:16.7]} 63... Re1
{[%clk 0:00:19.4]} 64. Rb7 {[%clk 0:01:15.6]} 64... Rd1 {[%clk 0:00:18.1]} 65.
g5 {[%clk 0:01:14.7]} 65... hxg5 {[%clk 0:00:17.9]} 66. fxg5 {[%clk 0:01:14.6]}
66... Rd5+ {[%clk 0:00:15.7]} 67. Kg4 {[%clk 0:01:13]} 67... Rxg5+ {[%clk
0:00:16.6]} 68. Kh4 {[%clk 0:01:13.3]} 68... Rg1 {[%clk 0:00:17]} 69. Rf7 {[%clk
0:01:11.9]} 69... Rg5 {[%clk 0:00:16.8]} 70. Rf8 {[%clk 0:01:10.9]} 70... Ra5
{[%clk 0:00:16.2]} 71. Rf7 {[%clk 0:01:10.4]} 71... Ra4+ {[%clk 0:00:16.5]} 72.
Kg3 {[%clk 0:01:09.6]} 72... Kh6 {[%clk 0:00:17.4]} 73. Re7 {[%clk 0:01:09.1]}
73... Ra5 {[%clk 0:00:17.7]} 74. Kg4 {[%clk 0:01:08.7]} 74... Rg5+ {[%clk
0:00:17.9]} 75. Kf4 {[%clk 0:01:07.9]} 75... Rxh5 {[%clk 0:00:18.4]} 76. Re8
{[%clk 0:01:08.5]} 76... Rh4+ {[%clk 0:00:18.7]} 77. Kg3 {[%clk 0:01:08.5]}
77... Rb4 {[%clk 0:00:19.1]} 78. Rg8 {[%clk 0:01:06.7]} 78... g6 {[%clk
0:00:18.9]} 79. Kh3 {[%clk 0:01:06.8]} 79... Kg5 {[%clk 0:00:19.3]} 80. Rc8
{[%clk 0:01:06.4]} 80... Rb3+ {[%clk 0:00:19.6]} 81. Kg2 {[%clk 0:01:06.7]}
81... f5 {[%clk 0:00:20]} 82. Rc5 {[%clk 0:01:06.9]} 82... Kg4 {[%clk 0:00:20]}
83. Rc4+ {[%clk 0:01:06.8]} 83... f4 {[%clk 0:00:20.4]} 84. Kf2 {[%clk
0:01:07.3]} 84... Rb2+ {[%clk 0:00:20.2]} 85. Kg1 {[%clk 0:01:06.7]} 85... g5
{[%clk 0:00:20.6]} 86. Rc3 {[%clk 0:01:06.1]} 86... f3 {[%clk 0:00:20.6]} 87.
Rc5 {[%clk 0:01:05.9]} 87... Rb1+ {[%clk 0:00:19.2]} 88. Kf2 {[%clk 0:01:05.7]}
88... Rb2+ {[%clk 0:00:19.4]} 89. Kg1 {[%clk 0:01:05.7]} 89... Kf4 {[%clk
0:00:19.3]} 90. Ra5 {[%clk 0:00:59.7]} 90... g4 {[%clk 0:00:19.5]} 91. Ra1
{[%clk 0:00:59]} 91... Kg3 {[%clk 0:00:19.5]} 92. Kh1 {[%clk 0:00:59.4]} 92...
Rh2+ {[%clk 0:00:19.2]} 93. Kg1 {[%clk 0:00:59.5]} 93... f2+ {[%clk 0:00:20.1]}
94. Kf1 {[%clk 0:01:00]} 94... Rh1+ {[%clk 0:00:20.7]} 95. Ke2 {[%clk
0:01:00.9]} 95... Rxa1 {[%clk 0:00:20.6]} 96. Ke3 {[%clk 0:01:01.3]} 96... Re1+
{[%clk 0:00:20.6]} 97. Kd2 {[%clk 0:01:00.8]} 97... Re8 {[%clk 0:00:20.4]} 98.
Kd3 {[%clk 0:01:00.7]} 98... f1=Q+ {[%clk 0:00:20.6]} 0-1